fUSD/lending_fUSD_20240329
["ID","MTS","AMOUNT","RATE_DAILY","PERIOD"]
[321010185,1711744238745,-406.08005128,0.00046711,4]
[321010186,1711744238754,-155.98756269,0.00046712,4]
[321010187,1711744238762,-257.2109141,0.00046712,4]
[321010188,1711744238771,-500.0,0.00046712,120]
[321010189,1711744238781,-500.0,0.00046712,120]
[321010190,1711744238791,-429.25617808,0.00046712,120]
[321010191,1711744238801,-350.70074542,0.00046713,2]
[321010192,1711744238814,-14.3076056,0.00046713,2]
[321010193,1711744238823,-421.83090988,0.00046713,30]
[321010194,1711744238835,-14846.03604008,0.00046713,30]
[321010195,1711744238853,-472.52937738,0.00046713,30]
[321010196,1711744238873,-1938.86786587,0.00046713,30]
[321010197,1711744238905,-1284.46871091,0.00046713,30]
[321010198,1711744238916,-32189.44277493,0.00046713,30]
[321010199,1711744238926,-159.8631895,0.00046713,4]
[321010200,1711744238935,-277.37815344,0.00046713,4]
[321010201,1711744238944,-148419.60526779,0.00046713,4]
[321010202,1711744238954,-434.19482073,0.00046713,4]
[321010203,1711744238963,-7182.6863976,0.00046714,5]
[321010204,1711744238972,-431.05992528,0.00046714,2]
[321010205,1711744238982,-608.6289168,0.00046714,60]
[321010206,1711744238991,-166.88,0.00046715,2]
[321010207,1711744239001,-39047.29,0.00046715,10]
[321010208,1711744239013,-483.62,0.00046941,2]
[321010209,1711744239023,-155.0,0.00047,4]
[321010210,1711744239033,-203.50668969,0.00047,14]
[321010211,1711744239042,-1000.0,0.00047317,2]
[321010212,1711744239052,-643.93684455,0.00047322,4]
[321010213,1711744239061,-155.20344437,0.00047362,30]
[321010214,1711744239070,-517.86,0.00047569,2]
[321010215,1711744239078,-5123.87000363,0.00047889,2]
[321010216,1711744239087,-400.0,0.000479,17]
[321010217,1711744239096,-649.81,0.00047967,2]
[321010218,1711744239105,-39172.95141494,0.00047977,2]
[321010219,1711744239113,-29239.7269,0.0004799,2]
[321010220,1711744239123,-155.12783887,0.00047997,30]
[321010221,1711744239132,-692.00964612,0.00048,2]
[321010222,1711744239141,-151.0,0.00048,120]
[321010223,1711744239149,-1984.83,0.0004808,2]
[321010224,1711744239158,-334.75177722,0.0004809,2]
[321010225,1711744239167,-723.1657,0.0004809,3]
[321010226,1711744239176,-8235.2484,0.0004809,2]
[321010227,1711744239185,-159.39270473,0.0004818,2]
[321010228,1711744239194,-649.81,0.0004818,2]
[321010229,1711744239204,-1984.83,0.0004818,2]
[321010230,1711744239213,-1522.06496028,0.0004819,2]
[321010231,1711744239637,-8833.85479932,0.0004819,2]
[321010233,1711744240296,-13761.892,0.0004819,2]
[321010234,1711744240464,-705.13101045,0.0004819,2]
[321010235,1711744240676,-4185.87511336,0.0004819,2]
[321010236,1711744240687,-1666.79321985,0.0004819,2]
[321010244,1711744243547,-9151.60929674,0.0004819,2]
[321010245,1711744243559,-17100.52006849,0.0004819,2]
[321010246,1711744243658,-2372.73642033,0.0004819,2]
[321010247,1711744243670,-7415.13787501,0.0004819,2]
[321010248,1711744243694,-0.00181832,0.0004819,2]
[321010249,1711744243714,-5853.12181002,0.0004819,2]
[321010269,1711744246277,-1057.64630276,0.0004819,2]
[321010270,1711744246607,-2701.72321671,0.0004819,2]
[321010271,1711744246621,-4962.16661337,0.0004819,2]
[321010273,1711745041186,281.53857634,0.00025,4]
[321010274,1711745111022,24571.52649766,0.00025,2]
[321010275,1711745125119,4096.934926,0.00025,2]
[321010276,1711745125148,9580.91227596,0.00025,2]
[321010277,1711745132711,364.07154141,0.00025,2]
[321010278,1711745146710,512.73508958,0.00025,2]
[321010280,1711745251152,-155.0,0.00028893,2]
[321010281,1711745251171,-66.84435684,0.00028893,2]
[321010286,1711745351091,-325.65308426,0.00028599,2]
[321010287,1711745351111,-11465.96807,0.000286,2]
[321010288,1711745351129,-4180.97479576,0.00028742,2]
[321010289,1711745351152,-668.77110589,0.00028743,2]
[321010290,1711745351171,-173.29860837,0.00028743,2]
[321010291,1711745351189,-437.38748594,0.00028743,2]
[321010292,1711745351208,-2343.34904671,0.00028744,2]
[321010293,1711745351226,-295.07295522,0.00028744,2]
[321010294,1711745351245,-4384.77639282,0.00028745,2]
[321010295,1711745351265,-150.0,0.00028747,2]
[321010296,1711745351283,-150.0,0.00028747,2]
[321010297,1711745351303,-154.43108104,0.00029088,2]
[321010298,1711745351322,-151.61319479,0.000295,2]
[321010299,1711745351341,-155.74157422,0.00029999,2]
[321010300,1711745351360,-404.63222355,0.0003,4]
[321010301,1711745351385,-4088.81337984,0.0003,4]
[321010302,1711745351431,-15173.84305756,0.0003,4]
[321010303,1711745351450,-150.99,0.0003,2]
[321010304,1711745351470,-154.43108104,0.00030094,2]
[321010305,1711745351494,-154.43108104,0.000311,2]
[321010306,1711745351513,-154.43108104,0.00032106,2]
[321010307,1711745351531,-253.5,0.00032164,2]
[321010308,1711745351550,-250.0,0.00033,3]
[321010309,1711745351571,-262.19,0.00033,15]
[321010310,1711745351594,-3909.62,0.00033,2]
[321010311,1711745351612,-499.99,0.00033,2]
[321010312,1711745351632,-154.43108104,0.00033112,2]
[321010313,1711745351652,-154.43108104,0.00034118,2]
[321010314,1711745351672,-2295.18425895,0.00034889,2]
[321010315,1711745351691,-616.71914988,0.00034899,4]
[321010317,1711745351714,-300.0,0.00035,3]
[321010318,1711745351733,-154.43108104,0.00035124,2]
[321010320,1711745351752,-154.43108104,0.0003613,2]
[321010321,1711745351772,-176.45993283,0.00036787,4]
[321010322,1711745351791,-1001.4464,0.00036788,2]
[321010324,1711745351810,-19579.69148142,0.00036789,4]
[321010325,1711745351828,-664.93,0.00036789,2]
[321010326,1711745351846,-359.48685988,0.00036789,2]
[321010327,1711745351866,-1903.83659298,0.00036789,4]
[321010328,1711745351885,-1113.30595471,0.00036789,4]
[321010329,1711745351906,-350.0,0.00037,3]
[321010330,1711745351926,-154.43108104,0.00037136,2]
[321010331,1711745351945,-354.0,0.000374,2]
[321010332,1711745351965,-154.43108104,0.00038142,2]
[321010333,1711745351984,-175.51,0.00038356,2]
[321010334,1711745352004,-400.0,0.00039,3]
[321010335,1711745352024,-154.43108104,0.00039148,2]
[321010336,1711745352045,-159.8,0.00039738,15]
[321010337,1711745352065,-508.01,0.00039742,2]
[321010338,1711745352084,-150.09,0.00040004,2]
[321010339,1711745352116,-154.43108104,0.00040154,2]
[321010340,1711745352140,-250.0,0.00040173,2]
[321010341,1711745352161,-435.33,0.00040294,2]
[321010342,1711745352182,-1932.2,0.00040732,2]
[321010343,1711745352201,-450.0,0.00041,3]
[321010344,1711745352220,-924.92,0.00041107,2]
[321010345,1711745352240,-154.43108104,0.0004116,2]
[321010346,1711745352259,-250.0,0.00041653,2]
[321010347,1711745352278,-200.0,0.00041653,2]
[321010348,1711745352302,-538.68,0.00041653,2]
[321010349,1711745352323,-2623.64,0.00041716,2]
[321010350,1711745352343,-2751.0,0.00041725,120]
[321010351,1711745352363,-155.55,0.0004181,2]
[321010352,1711745352383,-500.0,0.0004183,2]
[321010353,1711745352407,-291.06,0.00041955,2]
[321010354,1711745352427,-13027.57,0.00041999,2]
[321010355,1711745352445,-3927.15,0.00041999,2]
[321010356,1711745352465,-250.0,0.00042016,112]
[321010357,1711745352485,-2142.09,0.00042044,2]
[321010358,1711745352504,-155.55,0.00042052,2]
[321010359,1711745352524,-159.31,0.00042056,2]
[321010360,1711745352543,-150.0,0.00042088,2]
[321010361,1711745352564,-17430.28939631,0.00042166,2]
[321010362,1711745365653,201.41606414,0.0003,4]
[321010363,1711745374082,-19061.24037326,0.0003,4]
[321010366,1711745391172,192.76307478,0.0003,4]
[321010376,1711745431533,-49.91268045,0.0003,4]
[321010377,1711745431543,-1677.97028821,0.00042165,4]
[321010378,1711745431554,-377.5183695,0.00042165,4]
[321010379,1711745431565,-6469.71060369,0.00042166,2]
[321010380,1711745431575,-154.43108104,0.00042166,2]
[321010381,1711745431586,-157.86,0.00042184,2]
[321010382,1711745431596,-157.86,0.00042226,2]
[321010383,1711745431607,-157.86,0.00042268,2]
[321010384,1711745431619,-155.55,0.00042294,2]
[321010385,1711745431629,-596.29,0.00042302,2]
[321010386,1711745431639,-157.86,0.0004231,2]
[321010387,1711745431649,-499.99,0.0004231,2]
[321010388,1711745431659,-157.86,0.00042352,2]
[321010389,1711745431669,-157.86,0.00042394,2]
[321010390,1711745431678,-155.55,0.00042536,2]
[321010391,1711745431688,-155.55,0.00042778,2]
[321010392,1711745431698,-223.65,0.00043016,120]
[321010393,1711745431708,-155.55,0.0004302,2]
[321010394,1711745431718,-167.27,0.00043041,2]
[321010395,1711745431727,-1488.3,0.00043072,2]
[321010396,1711745431737,-159.8,0.00043162,15]
[321010397,1711745431747,-154.43108104,0.00043172,2]
[321010398,1711745431757,-155.55,0.00043262,2]
[321010399,1711745431766,-150.09,0.00043388,2]
[321010400,1711745431775,-155.55,0.00043504,2]
[321010401,1711745431784,-155.55,0.00043746,2]
[321010402,1711745431794,-168.63,0.00043779,2]
[321010403,1711745431804,-155.55,0.00043989,2]
[321010404,1711745431813,-154.43108104,0.00044178,2]
[321010405,1711745431823,-177.21,0.00044562,2]
[321010406,1711745431833,-1026.90380943,0.00044775,4]
[321010407,1711745431842,-543.93,0.00044776,2]
[321010408,1711745431852,-2142.09,0.00044784,2]
[321010409,1711745431861,-1000.0,0.00044911,2]
[321010410,1711745431870,-154.43108104,0.00045184,2]
[321010411,1711745431879,-3242.0,0.00045784,2]
[321010412,1711745431888,-4005.0,0.00046012,2]
[321010413,1711745431898,-154.43108104,0.0004619,2]
[321010414,1711745431908,-159.8,0.00046587,15]
[321010415,1711745431918,-200.0,0.00046694,2]
[321010416,1711745431928,-3207.16,0.00046694,30]
[321010417,1711745431938,-150.09,0.00046771,2]
[321010418,1711745431948,-543.93,0.0004704,2]
[321010419,1711745431959,-441.32026764,0.00047067,4]
[321010420,1711745431969,-831.28,0.00047067,2]
[321010421,1711745431980,-532.32220944,0.00047091,4]
[321010422,1711745431991,-234.63038123,0.00047091,4]
[321010423,1711745432001,-193.61043381,0.00047091,4]
[321010424,1711745432011,-281.46285823,0.00047092,4]
[321010425,1711745432021,-5518.64432742,0.00047092,4]
[321010426,1711745432031,-154.43108104,0.00047196,2]
[321010427,1711745432041,-267.3872529,0.00047226,2]
[321010428,1711745432051,-155.0,0.00047229,4]
[321010429,1711745432428,-250.90057442,0.00047229,4]
[321010430,1711745432438,-296.92163089,0.00047229,120]
[321010431,1711745432449,-155.40987384,0.0004736,30]
[321010432,1711745432459,-155.0,0.00047467,4]
[321010433,1711745432470,-157.45435617,0.00047499,30]
[321010434,1711745432481,-233.64284723,0.00047509,13]
[321010435,1711745432491,-1000.0,0.00047509,2]
[321010436,1711745432502,-154.17961156,0.00047511,30]
[321010437,1711745432511,-1009.05092,0.0004752,37]
[321010438,1711745432522,-2142.09,0.00047523,2]
[321010439,1711745432532,-160.29725606,0.00047577,30]
[321010440,1711745432542,-391.88,0.00047599,30]
[321010441,1711745432553,-470.87,0.00047599,2]
[321010442,1711745432562,-3950.704,0.000476,2]
[321010443,1711745432572,-4011.0989,0.000476,2]
[321010444,1711745432583,-1491.40284782,0.00047607,4]
[321010445,1711745432593,-421.29075416,0.00047607,4]
[321010446,1711745432603,-241.13144531,0.00047607,4]
[321010447,1711745432618,-239.42477758,0.00047607,4]
[321010448,1711745432628,-239.79902147,0.00047607,4]
[321010449,1711745432637,-10967.82131873,0.00047607,4]
[321010450,1711745432648,-1069.96307969,0.00047607,2]
[321010451,1711745432673,-17.1358431,0.00047607,2]
[321010452,1711745432705,-323.37047721,0.00047607,2]
[321010453,1711745432715,-294.55872705,0.00047608,2]
[321010454,1711745432726,-551.58556299,0.00047608,2]
[321010455,1711745432779,-153.85570996,0.00047608,2]
[321010456,1711745432789,-165887.20331166,0.00047609,2]
[321010467,1711745437491,-2748.55026948,0.00047609,2]
[321010468,1711745437586,-3659.48475384,0.00047609,2]
[321010469,1711745437637,-3063.821864,0.00047609,2]
[321010470,1711745437650,-1747.11886551,0.00047609,2]
[321010471,1711745437662,-1386.35282352,0.00047609,2]
[321010472,1711745437695,-66507.46811199,0.00047609,2]
[321010473,1711745437704,-97174.0286,0.00047609,2]
[321010474,1711745437715,-500.0,0.00047609,2]
[321010475,1711745437725,-1678.9532,0.0004761,2]
[321010476,1711745437738,-8757.127,0.0004761,2]
[321010477,1711745437747,-159.65462471,0.00047673,30]
[321010478,1711745437758,-470.87,0.00047699,2]
[321010479,1711745437769,-3486.21562667,0.00047707,4]
[321010480,1711745437778,-632.70079721,0.00047708,4]
[321010481,1711745437789,-360.6195657,0.00047708,4]
[321010482,1711745437801,-782.03241683,0.00047708,4]
[321010483,1711745437811,-780.60517172,0.00047708,4]
[321010484,1711745437820,-156.8221224,0.00047708,4]
[321010485,1711745437829,-155.0,0.00047708,4]
[321010486,1711745437838,-203.60684489,0.00047708,4]
[321010487,1711745437847,-165.94374686,0.00047708,4]
[321010488,1711745437856,-155.0,0.00047708,4]
[321010490,1711745437865,-1082.19517149,0.00047708,4]
[321010492,1711745437874,-155.31643916,0.00047708,4]
[321010494,1711745437883,-204.9621333,0.00047708,4]
[321010496,1711745437891,-1387.42874521,0.00047708,4]
[321010498,1711745437900,-251.06835013,0.00047708,4]
[321010500,1711745437909,-170.65944733,0.00047708,4]
[321010501,1711745437919,-155.0,0.00047708,4]
[321010503,1711745437928,-155.15358764,0.00047708,4]
[321010505,1711745437937,-243.99873144,0.00047708,4]
[321010507,1711745437946,-484.98586537,0.00047708,4]
[321010509,1711745437956,-950.93679399,0.00047708,4]
[321010511,1711745437965,-155.11614142,0.00047708,4]
[321010513,1711745437974,-950.26152921,0.00047708,4]
[321010515,1711745437984,-155.05850287,0.00047708,4]
[321010517,1711745437993,-155.0,0.00047708,4]
[321010518,1711745438002,-164.96805019,0.00047708,4]
[321010519,1711745438011,-200.75759083,0.00047708,4]
[321010520,1711745438026,-565.10937758,0.00047708,4]
[321010521,1711745438035,-3827.19851889,0.00047708,4]
[321010522,1711745438044,-1935.72230986,0.00047709,4]
[321010523,1711745438054,-191.39398981,0.00047709,4]
[321010524,1711745438063,-6889.90545962,0.00047709,4]
[321010525,1711745438073,-1034.93742216,0.00047709,4]
[321010526,1711745438082,-219.03923941,0.00047709,4]
[321010527,1711745438090,-8455.67805073,0.00047709,4]
[321010528,1711745438100,-106024.04705381,0.0004771,2]
[321010529,1711745438108,-168.2214059,0.000478,2]
[321010530,1711745438117,-1000.0,0.000479,2]
[321010531,1711745438126,-500.0,0.000479,17]
[321010532,1711745438136,-1000.0,0.00048,2]
[321010533,1711745438146,-1371.01948413,0.00048,2]
[321010534,1711745438155,-151.0,0.00048,120]
[321010535,1711745438164,-728.91405275,0.00048178,2]
[321010536,1711745438174,-155.0,0.00048188,4]
[321010537,1711745438183,-559.30829187,0.00048188,4]
[321010538,1711745438192,-484.40481559,0.00048188,4]
[321010539,1711745438201,-32106.74704657,0.00048188,2]
[321010540,1711745438210,-500.0,0.00048189,2]
[321010541,1711745438219,-195.1688407,0.0004819,2]
[321010542,1711745438277,-306.77009816,0.0004819,120]
[321010543,1711745438287,-172.06284793,0.0004819,4]
[321010544,1711745438295,-155.50573694,0.0004819,4]
[321010545,1711745438304,-155.0,0.0004819,4]
[321010546,1711745438313,-1594.95663513,0.0004819,10]
[321010547,1711745438322,-155.0,0.0004819,4]
[321010548,1711745438331,-253.32377221,0.0004819,2]
[321010549,1711745438340,-218.22894187,0.00048202,24]
[321010550,1711745438349,-1732.76653128,0.00048202,24]
[321010551,1711745438359,-154.43108104,0.00048202,2]
[321010552,1711745438368,-3588.3589132,0.00048239,2]
[321010553,1711745438377,-157.13748303,0.00048272,30]
[321010554,1711745438386,-470.87,0.00048278,2]
[321010555,1711745438395,-470.87,0.0004828,2]
[321010556,1711745438404,-275.10762718,0.00048287,2]
[321010557,1711745438413,-156.35705566,0.00048288,4]
[321010558,1711745438423,-20319.59854201,0.00048288,4]
[321010559,1711745438432,-4300.63296631,0.00048288,2]
[321010560,1711745438441,-415.00211128,0.00048288,2]
[321010561,1711745438450,-155.0,0.00048288,4]
[321010562,1711745438459,-407.92031615,0.00048289,60]
[321010563,1711745438468,-86456.44073164,0.0004829,10]
[321010564,1711745438791,-5268.59037791,0.0004829,10]
[321010575,1711745439633,-159.31,0.00047196,2]
[321010576,1711745439645,-1264.16518049,0.0004829,10]
[321010577,1711745439676,-7442.62188612,0.0004829,10]
[321010578,1711745439731,-645.92349664,0.0004829,10]
[321010579,1711745439787,-2642.15021336,0.0004829,10]
[321010580,1711745439799,-658.090015,0.0004829,10]
[321010588,1711745442491,-4379.05894815,0.00048239,2]
[321010589,1711745442506,-7481.50355792,0.00048239,2]
[321010590,1711745442518,-5859.81104563,0.00048239,2]
[321010591,1711745442527,-28911.07429948,0.0004829,10]
[321010592,1711745442558,-4063.4670006,0.0004829,10]
[321010593,1711745442569,-1619.55,0.0004829,10]
[321010594,1711745442585,-698.369695,0.0004829,10]
[321010595,1711745442692,-6965.0,0.0004829,10]
[321010596,1711745442906,-412.74691942,0.0004829,10]
[321010632,1711745445601,-81226.16714621,0.0004829,10]
[321010635,1711745445613,-155.12783887,0.00048302,30]
[321010637,1711745445623,-156.3,0.00048402,2]
[321010639,1711745445632,-233.64284718,0.00048575,13]
[321010641,1711745445641,-151.0,0.00048575,120]
[321010643,1711745445652,-1056.0,0.000487,117]
[321010645,1711745445662,-168.22140587,0.00048839,2]
[321010647,1711745445671,-1200.0,0.00049,4]
[321010649,1711745445680,-154.17961156,0.00049068,30]
[321010651,1711745445690,-150.0,0.000491,9]
[321010653,1711745445700,-151.0,0.00049151,120]
[321010655,1711745445709,-543.93,0.00049304,2]
[321010657,1711745445718,-1198.01,0.00049315,60]
[321010659,1711745445728,-1000.0,0.00049315,120]
[321010661,1711745445739,-1000.0,0.00049315,120]
[321010663,1711745445748,-170.21,0.00049315,30]
[321010665,1711745445758,-1732.76653126,0.00049447,25]
[321010667,1711745445767,-180.0,0.00049463,120]
[321010669,1711745445776,-154.17961156,0.00049556,30]
[321010671,1711745445787,-150.0,0.000496,10]
[321010673,1711745445796,-233.64284718,0.0004964,14]
[321010675,1711745445806,-155.20344437,0.00049708,30]
[321010677,1711745445816,-151.0,0.00049726,120]
[321010679,1711745445826,-168.22140587,0.00049877,2]
[321010681,1711745445835,-1000.0,0.000499,18]
[321010682,1711745445845,-326.57,0.00049911,30]
[321010684,1711745445854,-416.02,0.00049921,30]
[321010686,1711745445863,-161.51,0.00049921,30]
[321010687,1711745445873,-150.0,0.00049921,60]
[321010688,1711745445882,-714.29,0.00049921,30]
[321010689,1711745445892,-150.0,0.00049921,30]
[321010690,1711745445901,-238.64,0.00049921,30]
[321010691,1711745445911,-518.1,0.00049921,30]
[321010692,1711745445920,-150.0,0.00049921,30]
[321010693,1711745445930,-416.02,0.00049921,30]
[321010694,1711745445939,-518.1,0.00049921,30]
[321010695,1711745445948,-150.0,0.00049921,30]
[321010696,1711745445958,-150.0,0.00049921,30]
[321010697,1711745445967,-161.51,0.00049921,30]
[321010698,1711745445978,-150.0,0.00049921,60]
[321010699,1711745445987,-150.0,0.00049921,30]
[321010700,1711745445996,-416.02,0.00049921,30]
[321010701,1711745446005,-150.0,0.00049921,60]
[321010702,1711745446014,-518.1,0.00049921,30]
[321010703,1711745446023,-150.0,0.00049921,30]
[321010704,1711745446032,-150.0,0.00049921,30]
[321010705,1711745446041,-150.0,0.00049921,30]
[321010706,1711745446051,-161.51,0.00049921,30]
[321010707,1711745446061,-416.02,0.00049921,30]
[321010708,1711745446070,-150.0,0.00049921,30]
[321010709,1711745446080,-161.51,0.00049921,30]
[321010710,1711745446089,-518.1,0.00049921,30]
[321010711,1711745446098,-150.0,0.00049921,60]
[321010712,1711745446108,-416.02,0.00049921,30]
[321010713,1711745446118,-518.1,0.00049921,30]
[321010714,1711745446128,-150.0,0.00049921,30]
[321010715,1711745446137,-518.1,0.00049921,30]
[321010716,1711745446146,-649.17,0.00049921,30]
[321010717,1711745446155,-164.37,0.00049921,30]
[321010718,1711745446165,-518.1,0.00049921,30]
[321010719,1711745446174,-466.66755068,0.00049921,30]
[321010720,1711745446188,-51.43244932,0.00049921,30]
[321010721,1711745446197,-518.1,0.00049921,30]
[321010722,1711745446206,-149.23355068,0.00049921,30]
[321010723,1711745446245,-354.26417504,0.00049921,30]
[321010725,1711745469938,194021.22256605,0.00025,2]
[321010726,1711745553730,406.65156577,0.0002425,2]
[321010727,1711745558604,1904.50942371,0.00025,2]
[321010728,1711745563282,291.4422811,0.00025,2]
[321010730,1711745675788,71975.06809928,0.0002511,2]
[321010734,1711745680692,-1364.15268736,0.00028993,2]
[321010735,1711745680713,-660.37597191,0.00028993,2]
[321010736,1711745680735,-258.46764721,0.00028994,2]
[321010737,1711745680893,-407.00498961,0.00028995,2]
[321010738,1711745680928,-150.0,0.00028996,2]
[321010739,1711745680949,-16135.54389796,0.00028997,2]
[321010740,1711745680972,-201.41606414,0.00029,2]
[321010741,1711745680994,-8889.26432792,0.0003,2]
[321010742,1711745681016,-434.43086857,0.0003,2]
[321010743,1711745681037,-425.866066,0.00031272,2]
[321010744,1711745681059,-2773.47747932,0.00031429,4]
[321010745,1711745888144,-898.54083325,0.00031428,4]
[321010746,1711745888166,-3512.89597176,0.00031429,4]
[321010747,1711745888187,-4562.22276384,0.00031429,4]
[321010748,1711745888208,-6426.34043115,0.0003143,4]
[321010749,1711746227761,-865.85791957,0.00031427,4]
[321010750,1711746227784,-471.80482523,0.00031428,2]
[321010751,1711746227809,-7775.91003084,0.00031429,4]
[321010752,1711746227831,-1136.42722436,0.0003143,4]
[321010753,1711746437156,-248.93764651,0.00031425,4]
[321010757,1711746545116,-898.54083325,0.00031424,4]
[321010758,1711746545137,-1583.89705819,0.00031425,4]
[321010759,1711746545158,-10625.27571868,0.0003143,4]
[321010760,1711746545191,-250.0,0.00033,3]
[321010761,1711746550094,-627.8543352,0.00035,30]
[321010766,1711746609628,-297.54338035,0.00035,30]
[321010767,1711746609653,-257.45661965,0.00035,3]
[321010768,1711746610985,-42.54338035,0.00035,3]
[321010772,1711746631691,-3940.798595,0.00038014,2]
[321010773,1711746631701,-746.60142935,0.0003804,4]
[321010774,1711746631711,-155.0,0.0003804,4]
[321010775,1711746631721,-175.5,0.00038356,2]
[321010776,1711746631731,-572.78,0.00038418,2]
[321010777,1711746631741,-473.06395,0.0003897,2]
[321010778,1711746631750,-313.13,0.0003897,2]
[321010779,1711746631760,-1780.76709104,0.0003999,2]
[321010780,1711746631770,-2450.57448418,0.0004,2]
[321010781,1711746631780,-3351.09,0.0004,2]
[321010782,1711746631790,-150.05,0.00040135,2]
[321010783,1711746631800,-2197.04071289,0.00040153,4]
[321010784,1711746631810,-150.99,0.00040153,10]
[321010785,1711746631819,-499.99,0.00040153,2]
[321010786,1711746631828,-250.0,0.00040274,2]
[321010787,1711746631838,-800.0,0.00040278,2]
[321010788,1711746631850,-232.4,0.0004031,2]
[321010789,1711746631860,-653.95,0.00040317,2]
[321010790,1711746631869,-1360.38,0.00040323,2]
[321010791,1711746631878,-181.09,0.00040326,120]
[321010792,1711746631888,-23900.0,0.00040332,2]
[321010793,1711746631898,-500.0,0.00040334,2]
[321010794,1711746631907,-167.27,0.00040337,2]
[321010795,1711746631918,-2751.0,0.00040337,120]
[321010796,1711746631933,-150.0,0.00040381,2]
[321010797,1711746631943,-434.8,0.00040385,2]
[321010798,1711746631952,-1610.16,0.00040403,2]
[321010799,1711746631962,-200.0,0.0004041,2]
[321010800,1711746631973,-250.0,0.00040426,2]
[321010801,1711746631983,-1852.42,0.00040429,2]
[321010802,1711746631993,-250.0,0.00040434,112]
[321010803,1711746632004,-159.8,0.00040444,15]
[321010804,1711746632014,-500.0,0.0004045,2]
[321010805,1711746632025,-2289.62,0.00040502,2]
[321010806,1711746632035,-304.74492673,0.00040563,2]
[321010807,1711746632049,-859.57814569,0.00040572,2]
[321010808,1711746632058,-522.35489817,0.00040572,2]
[321010809,1711746632067,-572.78,0.00040682,2]
[321010810,1711746632077,-155.98,0.0004073,2]
[321010811,1711746632086,-200.0,0.00040759,2]
[321010812,1711746632095,-170.76,0.00040889,2]
[321010813,1711746632106,-155.98,0.00041261,2]
[321010814,1711746632115,-934.30290991,0.00041415,4]
[321010815,1711746632125,-599.84381283,0.00041421,4]
[321010816,1711746632153,-155.98,0.00041792,2]
[321010818,1711746632162,-158.18,0.00041864,2]
[321010820,1711746632172,-158.18,0.0004188,2]
[321010821,1711746632182,-158.18,0.00041896,2]
[321010822,1711746632192,-158.18,0.00041912,2]
[321010823,1711746632202,-158.18,0.00041928,2]
[321010824,1711746632212,-158.18,0.00041944,2]
[321010825,1711746632221,-158.18,0.0004196,2]
[321010826,1711746632230,-158.18,0.00041977,2]
[321010827,1711746632240,-158.18,0.00041993,2]
[321010828,1711746632249,-158.18,0.00042009,2]
[321010829,1711746632258,-158.18,0.00042025,2]
[321010830,1711746632267,-158.18,0.00042041,2]
[321010831,1711746632276,-158.18,0.00042057,2]
[321010832,1711746632286,-158.18,0.00042073,2]
[321010833,1711746632297,-355.32074254,0.00042169,4]
[321010834,1711746632307,-2131.8760671,0.00042229,4]
[321010835,1711746632317,-852.53380164,0.0004226,4]
[321010836,1711746632326,-5739.51348964,0.00042261,2]
[321010837,1711746632336,-167.08491541,0.00042261,10]
[321010838,1711746632345,-37682.73135664,0.00042262,2]
[321010839,1711746632355,-1675.10136509,0.00042267,4]
[321010840,1711746632365,-554.85409526,0.00042267,4]
[321010841,1711746632374,-400.0,0.00042267,2]
[321010842,1711746632383,-495.92071811,0.00042267,4]
[321010843,1711746632393,-2594.6177927,0.00042267,4]
[321010844,1711746632403,-405.94512165,0.00042267,4]
[321010845,1711746632412,-659.10032719,0.00042267,4]
[321010846,1711746632423,-416.47981365,0.00042267,4]
[321010847,1711746632433,-155.22369355,0.00042267,4]
[321010848,1711746632442,-203.88002601,0.00042267,4]
[321010849,1711746632452,-340.88519169,0.00042267,4]
[321010850,1711746632462,-200.0,0.00042267,2]
[321010851,1711746632472,-1236.8712,0.00042267,4]